Cogmind - Beta 15 @@@ ROGUE MODE // 2025.08.17 @ 03:13:16 Player: puppuppit Result: Destroyed by H-66 Slayer with Gauss Rifle Performance ------------- Evolutions (5) 2500 Regions Visited (8) 1600 Robots Destroyed (37) 185 Value Destroyed (430) 430 Prototype IDs (10) 200 Alien Tech Used (0) 0 Bonus (800) 800 TOTAL SCORE: 5715 Bonus ------- Registered with UFD 300 Met Optimus in HQ 500 Cogmind --------- Core Integrity 0/1000 Matter 300/300 Energy 99/100 System Corruption 0% Temperature Cool (0) Movement Core (50) Location -5/Factory Parts ------- > --- POWER (2) -------- (None) > --- PROPULSION (7) --- (None) > --- UTILITY (6) ------ Improved Signal Interpreter 0b10 Decoder Chip [Scout] Improved Target Analyzer > --- WEAPON (2) ------- (None) > --- INVENTORY (5) ---- Matter Compressor (250) Advanced Hacking Suite Long-range Missile Launcher Companion Sword Botcube Peak State ------------ > --- POWER ------------ Cooled Fission Core Cooled Fission Core > --- PROPULSION ------- Gravmag Array Antigrav System Antigrav System Antigrav System Antigrav System Linear Gravjet > --- UTILITY ---------- Enhanced Optical Array Improved Sensor Array Improved Signal Interpreter 0b10 Decoder Chip [Scout] Improved System Shield Corruption Screen > --- WEAPON ----------- Companion Sword > --- INVENTORY -------- Cooled Fission Core Matter Compressor Improved Reaction Control System Long-range Missile Launcher Botcube [Rating: 88] Favorites ----------- Power Cooled Fission Core Engine Light Ion Engine Power Core Cooled Fission Core Propulsion Flight Unit Hover Unit Hover Unit Flight Unit Flight Unit Utility 0b10 Decoder Chip [Scout] Device Reaction Control System Processor 0b10 Decoder Chip [Scout] Hackware Improved System Shield Weapon Companion Sword Ballistic Gun Heavy Assault Rifle Ballistic Cannon Mini Assault Cannon Launcher Heavy Proton Missile Launcher Special Weapon CPS Tube Slashing Weapon Companion Sword Build | -11 -10 -10 -9 -9 -9 -9 -6 -5 ------- Run | Yrd Mat Min Mat Sto Rec Scr Fac Fac Slots Evolved 10 | . . . 2 . . . 6 2 Power 1 | . . . . . . . 1 . Propulsion 5 | . . . 2 . . . 2 1 Utility 4 | . . . . . . . 3 1 Weapon . | . . . . . . . . . Parts Attached 41 | . 4 . . . . 7 6 24 Power 7 | . . . . . . 1 1 5 Engine 3 | . . . . . . 1 1 1 Core 4 | . . . . . . . . 4 Reactor . | . . . . . . . . . Propulsion 16 | . 2 . . . . 2 1 11 Treads . | . . . . . . . . . Leg . | . . . . . . . . . Wheel . | . . . . . . . . . Hover 10 | . . . . . . 2 1 7 Flight 6 | . 2 . . . . . . 4 Utility 12 | . . . . . . 2 4 6 Device 4 | . . . . . . 1 2 1 Storage . | . . . . . . . . . Processor 7 | . . . . . . 1 2 4 Hackware 1 | . . . . . . . . 1 Protection . | . . . . . . . . . Artifact . | . . . . . . . . . Weapon 6 | . 2 . . . . 2 . 2 Energy Gun . | . . . . . . . . . Energy Cannon . | . . . . . . . . . Ballistic Gun 2 | . 2 . . . . . . . Ballistic Cannon 1 | . . . . . . . . 1 Launcher 1 | . . . . . . . . 1 Special Weapon 1 | . . . . . . 1 . . Impact Weapon . | . . . . . . . . . Slashing Weapon 1 | . . . . . . 1 . . Piercing Weapon . | . . . . . . . . . Special Melee Weapon . | . . . . . . . . . Unidentified Prototypes 4 | . . . . . . 1 . 3 Parts Lost 21 | . . . . . . . . 21 Power 3 | . . . . . . . . 3 Propulsion 14 | . . . . . . . . 14 Utility 4 | . . . . . . . . 4 Weapon . | . . . . . . . . . Highest Loss Streak 14 | . . . . . . . . 14 To Critical Strikes . | . . . . . . . . . Average Backups 3 | . . 3 3 3 3 3 3 3 Power . | . . . . . . . . . Propulsion . | . . . . . . . . . Utility 1 | . . . . . . 1 1 2 Weapon 1 | . . 3 3 3 3 1 1 1 Tool/Special . | . . . . . . . . . Unused Backups 12 | . . . . . 3 5 . 4 Power . | . . . . . . . . . Propulsion . | . . . . . . . . . Utility 3 | . . . . . . 1 . 2 Weapon 8 | . . . . . 3 4 . 1 Tool/Special 1 | . . . . . . . . 1 Average Slot Usage (%) 66 | . 23 57 44 44 44 71 74 74 Core 1 | . . . . . . . . 3 Hover 15 | . . . . . . 15 18 23 Flight 13 | . 7 28 22 22 22 22 13 4 Device 6 | . . . . . . 9 12 4 Processor 14 | . . . . . . 9 18 22 Hackware 1 | . . . . . . . . 4 Ballistic Gun 4 | . 15 28 22 22 22 2 . . Special Weapon 1 | . . . . . . 2 3 . Slashing Weapon 5 | . . . . . . 9 6 4 Peak Build Rating 88 | . 6 6 6 6 6 22 49 88 Average Rating 37 | . 2 6 6 6 6 17 43 64 On Entrance 10 | . . 6 6 6 6 6 22 45 Naked Turns 44 | . 44 . . . . . . . Heaviest Build 34 | . 6 6 6 6 6 6 11 34 Greatest Support 73 | 3 8 8 8 8 8 8 33 73 Greatest Overweight (x) 1 | . 1 . . . . . . 1 Average Overweight (x) . | . . . . . . . . . Largest Inventory Capacity 5 | 5 5 5 5 5 5 5 5 5 Average Capacity 5 | 5 5 5 5 5 5 5 5 5 Most Carried 5 | . 3 3 3 3 5 5 5 5 Average Carried 4 | . . 3 3 3 3 4 4 4 Final Capacity 5 | 5 5 5 5 5 5 5 5 5 Final Carried 5 | . 3 3 3 3 4 5 5 5 Class Distribution -------------------- 65% | Mutant 23% | Scout 8% | Derelict-Mutant Dominant Class ---------------- Mutant | -10/Materials Mutant | -10/Mines Mutant | -9/Materials Mutant | -9/Storage Mutant | -9/Recycling Mutant | -9/Scraptown Derelict-Mutant | -6/Factory Scout | -5/Factory Resources | -11 -10 -10 -9 -9 -9 -9 -6 -5 ----------- Run | Yrd Mat Min Mat Sto Rec Scr Fac Fac Matter Collected 903 | 33 38 . . . 212 60 292 268 Remotely . | . . . . . . . . . Salvage Created 1615 | . 84 . . . . . 292 1239 Parts 92 | . 6 . . . . . 13 73 Haulers Intercepted 4 | . . . . . . . 1 3 Recyclers Shooed 2 | . 1 . . . . . . 1 Parts Field Recycled . | . . . . . . . . . Retrieved Matter . | . . . . . . . . . Parts Self-Destructed . | . . . . . . . . . Prevented . | . . . . . . . . . Kills | -11 -10 -10 -9 -9 -9 -9 -6 -5 ------- Run | Yrd Mat Min Mat Sto Rec Scr Fac Fac Combat Hostiles Destroyed 8 | . 3 . . . . . . 5 Melee 5 | . . . . . . . . 5 Guns 3 | . 3 . . . . . . . Classes Destroyed 9 | . 2 . . . . . 2 5 Worker 13 | . 1 . . . . . 1 11 Builder 6 | . . . . . . . . 6 Tunneler 1 | . . . . . . . . 1 Hauler 4 | . . . . . . . 1 3 Recycler 4 | . . . . . . . 1 3 Watcher 1 | . . . . . . . . 1 Swarmer 6 | . 3 . . . . . . 3 Sentry 1 | . . . . . . . . 1 Programmer 1 | . . . . . . . . 1 Best Kill Streak 5 | . 4 . . . . . 1 5 Combat Bots Only 3 | . 3 . . . . . . 3 Max Kills in Single Turn 2 | . 2 . . . . . 1 1 Gunslinging 1 | . 1 . . . . . . . Exploded . | . . . . . . . . . Melee 1 | . . . . . . . . 1 Uniques/NPCs Destroyed . | . . . . . . . . . Combat | -11 -10 -10 -9 -9 -9 -9 -6 -5 -------- Run | Yrd Mat Min Mat Sto Rec Scr Fac Fac Hostile Shots Fired 303 | . 40 4 4 5 . . . 250 Missed 97 | . 9 2 3 3 . . . 80 Hits 206 | . 31 2 1 2 . . . 170 Projectile 206 | . 31 2 1 2 . . . 170 Critical Strikes 2 | . . . . . . . . 2 Damage Taken 2945 | . 257 19 26 17 . . . 2626 Core 1173 | . 145 . 12 8 . . . 1008 Absorbed by Shields . | . . . . . . . . . Regen/Repaired (Parts) 56 | . . . . . . . . 56 Core Remaining (%) 84 | 100 . 42 . . . 95 100 . Volleys Fired 10 | . 8 . . . . . 2 . Largest 2 | . 2 . . . . . 1 . Hottest 46 | . 46 . . . . . . . Shots Fired 18 | . 16 . . . . . 2 . Gun 16 | . 16 . . . . . . . Cannon . | . . . . . . . . . Launcher . | . . . . . . . . . Special 2 | . . . . . . . 2 . Kinetic 16 | . 16 . . . . . . . Thermal . | . . . . . . . . . Explosive . | . . . . . . . . . Electromagnetic . | . . . . . . . . . Robot Hit Streak 3 | . 3 . . . . . 3 . Robot Miss Streak 2 | . 2 . . . . . . . Penetration Max . | . . . . . . . . . Secondary Targets 1 | . 1 . . . . . . . Max Gunslinging Chain 1 | . 1 . . . . . . . Shots Hit Robots 68 | . 8 . . . . . 9 51 Core Hits 32 | . 4 . . . . . 4 24 Critical Kills 1 | . 1 . . . . . . . Critical Parts Destroyed . | . . . . . . . . . Critical Strikes 3 | . 1 . . . . . 2 . Destroy 1 | . 1 . . . . . . . Melee Attacks 78 | . . . . . . . 8 70 Impact . | . . . . . . . . . Slashing 78 | . . . . . . . 8 70 Piercing . | . . . . . . . . . Sneak Attacks 28 | . . . . . . . 1 27 Combat Hostiles . | . . . . . . . . . Follow-up Attacks . | . . . . . . . . . Damage Inflicted 3757 | . 143 . 1 . . . 331 3282 Guns 140 | . 140 . . . . . . . Cannons . | . . . . . . . . . Explosions . | . . . . . . . . . Melee 3613 | . . . . . . . 331 3282 Ramming 4 | . 3 . 1 . . . . . Kinetic 140 | . 140 . . . . . . . Thermal . | . . . . . . . . . Explosive . | . . . . . . . . . Electromagnetic . | . . . . . . . . . Impact . | . . . . . . . . . Slashing 3613 | . . . . . . . 331 3282 Piercing . | . . . . . . . . . Highest Corruption . | . . . . . . . . . Average Corruption . | . . . . . . . . . Corruption Purged . | . . . . . . . . . Corruption Blocked 6 | . . . . . . . . 6 Overload Shots . | . . . . . . . . . Overflow Damage 743 | . . . . . . . . 743 Projectiles . | . . . . . . . . . Explosions . | . . . . . . . . . Melee 743 | . . . . . . . . 743 Knockbacks . | . . . . . . . . . Impact . | . . . . . . . . . Kinetic . | . . . . . . . . . Secondary . | . . . . . . . . . Self-Inflicted Damage 1 | . 1 . . . . . . . Shots . | . . . . . . . . . Rammed 2 | . 1 . 1 . . . . . Targets Rammed 2 | . 1 . 1 . . . . . Kicked . | . . . . . . . . . Crushed . | . . . . . . . . . Highest Temperature 115 | . . . . . . . . 115 Average Temperature 42 | . . . . . . . . 42 Received Heat Transfer 27 | . . . . . . . . 27 Siege Activations . | . . . . . . . . . Martial Activations . | . . . . . . . . . Shielding Activations . | . . . . . . . . . Robots Disrupted . | . . . . . . . . . Combat Hostiles . | . . . . . . . . . Robots Corrupted . | . . . . . . . . . Combat Hostiles . | . . . . . . . . . Parts Fried . | . . . . . . . . . Impact Corruptions . | . . . . . . . . . Robots Melted . | . . . . . . . . . Combat Hostiles . | . . . . . . . . . Parts Melted . | . . . . . . . . . Heat Transferred . | . . . . . . . . . Parts Sabotaged . | . . . . . . . . . Parts Stolen . | . . . . . . . . . Parts Stripped . | . . . . . . . . . Power Chain Reactions . | . . . . . . . . . Alert | -11 -10 -10 -9 -9 -9 -9 -6 -5 ------- Run | Yrd Mat Min Mat Sto Rec Scr Fac Fac Maximum Alert Level . | . . . . . . . . . Low Security (%) 100 | 100 100 100 100 100 100 . 100 100 Level 1 . | . . . . . . . . . Level 2 . | . . . . . . . . . Level 3 . | . . . . . . . . . Level 4 . | . . . . . . . . . Level 5 . | . . . . . . . . . High Security . | . . . . . . . . . Max Security . | . . . . . . . . . Peak Influence 144 | . 65 47 18 32 12 . 27 144 Initial 18 | . . 17 18 7 12 . . 7 Average 39 | . 24 23 18 18 4 . 7 59 Influence Increases 714 | . 75 30 . 45 . . 74 490 Destroy 0b10 Robot/C 180 | . 60 . . . . . . 120 Destroy 0b10 Robot/NC 145 | . 5 . . . . . 15 125 Destroy Leader 50 | . 10 . . . . . 2 38 Successful Hack 41 | . . . . . . . 27 14 Disable Machine 15 | . . . . . . . . 15 Destroy Structure 28 | . . . . . . . . 28 Partial Spotted 60 | . . . . 30 . . 30 . Lose Combat Pursuer 195 | . . 30 . 15 . . . 150 Influence Decreases 694 | . 30 28 29 31 32 . 59 485 Entered New Map 96 | . . 28 29 11 20 . . 8 Time Decay 343 | . 30 . . 20 12 . 59 222 Lost Part 199 | . . . . . . . . 199 Lost Ally 56 | . . . . . . . . 56 Squads Dispatched 12 | . . . . . . . 1 11 Investigation 5 | . . . . . . . . 5 Extermination 1 | . . . . . . . . 1 Reinforcement 3 | . . . . . . . 1 2 Assault . | . . . . . . . . . Garrison 3 | . . . . . . . . 3 Intercept . | . . . . . . . . . Searches Triggered . | . . . . . . . . . Construction Impeded . | . . . . . . . . . Haulers Reinforced 1 | . . . . . . . 1 . Active Scanning Responses . | . . . . . . . . . Cargo Convoy Interrupts . | . . . . . . . . . Stealth | -11 -10 -10 -9 -9 -9 -9 -6 -5 --------- Run | Yrd Mat Min Mat Sto Rec Scr Fac Fac Distress Signals 4 | . . . . 1 . . . 3 Communications Jammed . | . . . . . . . . . Distress Signals . | . . . . . . . . . Times Spotted 51 | . 4 5 2 8 . . . 32 Peak Tracking Total 9 | . 3 4 2 9 . . . 9 Tactical Retreats 7 | . . 1 . 1 . . . 5 Traps | -11 -10 -10 -9 -9 -9 -9 -6 -5 ------- Run | Yrd Mat Min Mat Sto Rec Scr Fac Fac Traps Triggered 1 | . . . . . . . . 1 Indirectly . | . . . . . . . . . Trap Hack Attempts . | . . . . . . . . . Triggered . | . . . . . . . . . Disarmed . | . . . . . . . . . Reprogrammed . | . . . . . . . . . Reused . | . . . . . . . . . Traps Extracted . | . . . . . . . . . Installed . | . . . . . . . . . Triggered . | . . . . . . . . . Machines | -11 -10 -10 -9 -9 -9 -9 -6 -5 ---------- Run | Yrd Mat Min Mat Sto Rec Scr Fac Fac Machines Disabled 1 | . . . . . . . . 1 Max in Single Turn 1 | . . . . . . . . 1 Garrison Access 1 | . . . . . . . . 1 Machines Repaired . | . . . . . . . . . Machines Dismantled . | . . . . . . . . . Machines Sabotaged . | . . . . . . . . . Overloaded Fab Kills . | . . . . . . . . . Hacking | -11 -10 -10 -9 -9 -9 -9 -6 -5 --------- Run | Yrd Mat Min Mat Sto Rec Scr Fac Fac Machines Accessed 13 | . 1 . . 2 . 1 1 8 Terminals 6 | . 1 . . 2 . . 1 2 Fabricators . | . . . . . . . . . Repair Stations 1 | . . . . . . . . 1 Recycling Units 3 | . . . . . . . . 3 Scanalyzers . | . . . . . . . . . Garrison Access 2 | . . . . . . . . 2 Total Hacks 29 | . 1 . . 9 . 2 2 15 Successful 9 | . . . . . . 2 1 6 Failed 20 | . 1 . . 9 . . 1 9 Catastrophic 5 | . 1 . . 2 . . . 2 Database Lockouts . | . . . . . . . . . Manual 20 | . 1 . . 5 . . 2 12 Terminals 17 | . 1 . . 9 . . 2 5 Fabricators . | . . . . . . . . . Repair Stations 1 | . . . . . . . . 1 Recycling Units 5 | . . . . . . . . 5 Scanalyzers . | . . . . . . . . . Garrison Access 4 | . . . . . . . . 4 Terminal Hacks 2 | . . . . . . 2 . . Record 1 | . . . . . . 1 . . Open Door 1 | . . . . . . 1 . . Fabricator Hacks . | . . . . . . . . . Repair Station Hacks . | . . . . . . . . . Recycling Unit Hacks . | . . . . . . . . . Scanalyzer . | . . . . . . . . . Garrison Access Hacks 2 | . . . . . . . . 2 Unlock Access 1 | . . . . . . . . 1 Seal Access 1 | . . . . . . . . 1 Unauthorized Hacks 5 | . . . . . . . 1 4 Terminals 1 | . . . . . . . 1 . Operators 1 | . . . . . . . 1 . Fabricators . | . . . . . . . . . Repair Stations 1 | . . . . . . . . 1 Patch 1 | . . . . . . . . 1 Recycling Units 3 | . . . . . . . . 3 Fedlink 1 | . . . . . . . . 1 Scrapoids 2 | . . . . . . . . 2 Scanalyzers . | . . . . . . . . . Garrison Access . | . . . . . . . . . Data Cores Recovered . | . . . . . . . . . Used . | . . . . . . . . . Hacking Detections 6 | . 1 . . 2 . . 1 2 Full Trace Events 2 | . . . . 1 . . . 1 Feedback Events . | . . . . . . . . . Feedback Blocked . | . . . . . . . . . Robot Schematics Acquired . | . . . . . . . . . Robots Built . | . . . . . . . . . Authchips . | . . . . . . . . . Time . | . . . . . . . . . Total Robot Build Rating . | . . . . . . . . . Part Schematics Acquired . | . . . . . . . . . Parts Built . | . . . . . . . . . Authchips . | . . . . . . . . . Time . | . . . . . . . . . Total Part Build Rating . | . . . . . . . . . Parts Repaired . | . . . . . . . . . Time . | . . . . . . . . . Parts Recycled . | . . . . . . . . . Recycled Matter . | . . . . . . . . . Retrieved Matter . | . . . . . . . . . Retrieved Components . | . . . . . . . . . Parts Scanalyzed . | . . . . . . . . . Part Schematics Acquired . | . . . . . . . . . Parts Damaged . | . . . . . . . . . Bothacking | -11 -10 -10 -9 -9 -9 -9 -6 -5 ------------ Run | Yrd Mat Min Mat Sto Rec Scr Fac Fac Used RIF Installer . | . . . . . . . . . Robots Hacked . | . . . . . . . . . Non-combat . | . . . . . . . . . Combat . | . . . . . . . . . Robot Hacks Applied . | . . . . . . . . . Relay Couplers Released . | . . . . . . . . . Fabnet Peak Effective % . | . . . . . . . . . Robots Rewired . | . . . . . . . . . Allies Hacked . | . . . . . . . . . Hacks Repelled . | . . . . . . . . . Allies | -11 -10 -10 -9 -9 -9 -9 -6 -5 -------- Run | Yrd Mat Min Mat Sto Rec Scr Fac Fac Total Allies 5 | . . . . . . . . 5 Largest Group 5 | . . . . . . . . 5 Highest-Rated Group 235 | . . . . . . . . 235 Highest-Rated Ally 47 | . . . . . . . . 47 Total Orders . | . . . . . . . . . Ally Attacks 25 | . . . . . . . . 25 Total Damage 346 | . . . . . . . . 346 Kills 1 | . . . . . . . . 1 Allies Corrupted . | . . . . . . . . . Allies Melted . | . . . . . . . . . Intel | -11 -10 -10 -9 -9 -9 -9 -6 -5 ------- Run | Yrd Mat Min Mat Sto Rec Scr Fac Fac Active Infowar (turns) 1163 | . . . . . . 392 187 584 Optics 1159 | . . . . . . 392 187 580 Sensors 16 | . . . . . . . . 16 Decoding 771 | . . . . . . . 187 584 Robot Analysis Total . | . . . . . . . . . Derelict Logs Recovered . | . . . . . . . . . Drone Launches . | . . . . . . . . . Drone Recoveries . | . . . . . . . . . Decoded 0b10 Intel 14 | . . . . . . . 3 11 Traps 8 | . . . . . . . 3 5 Emergency Access 6 | . . . . . . . . 6 Exploration | -11 -10 -10 -9 -9 -9 -9 -6 -5 ------------- Run | Yrd Mat Min Mat Sto Rec Scr Fac Fac Turns Passed 1469 | 10 101 10 15 49 59 454 187 584 Spaces Moved 2864 | 20 145 26 39 133 143 1109 386 863 Core 123 | 20 88 . . . . . . 15 Treads . | . . . . . . . . . Legs . | . . . . . . . . . Wheels . | . . . . . . . . . Hover 537 | . . . . . . . 44 493 Flight 2204 | . 57 26 39 133 143 1109 342 355 Fastest Speed 29 | 50 37 37 37 37 37 37 37 29 Average Speed 39 | 50 46 37 37 37 37 37 38 41 Slowest Speed 120 | 50 120 37 37 37 37 37 52 112 Overloaded Moves . | . . . . . . . . . Propulsion Burnouts . | . . . . . . . . . Robots Hopped 5 | . . . 1 2 . . 1 1 Potential Cave-ins . | . . . . . . . . . Cave-ins Triggered . | . . . . . . . . . Exploration Rate (%) 25 | 3 26 11 9 31 27 81 12 31 Regions Visited 8 Branch Regions 4 Pre-discovered Areas . | . . . . . . . . . Known Exits Taken . | . . . . . . . . . Unknown Exits Taken 8 | 1 1 1 1 1 1 1 1 . Scrap Searched 4 | . . . . . . 4 . . Spaces Dug 1 | . . . . . . . . 1 Terrain Destroyed 1 | . . . . . . . . 1 Melee 1 | . . . . . . . . 1 Projectile . | . . . . . . . . . AOE . | . . . . . . . . . Terrain Rammed . | . . . . . . . . . Walls Destroyed . | . . . . . . . . . Machines Disabled . | . . . . . . . . . Actions | -11 -10 -10 -9 -9 -9 -9 -6 -5 --------- Run | Yrd Mat Min Mat Sto Rec Scr Fac Fac Total 3064 | 19 160 25 38 130 149 1152 407 984 Wait 33 | . . . . . . 24 3 6 Move 2847 | 19 144 25 37 128 142 1108 383 861 Hop 5 | . . . 1 2 . . 1 1 Pick Up 20 | . 3 . . . 4 6 1 6 Fast Attach 33 | . 4 . . . . 6 4 19 Attach 5 | . . . . . . . 2 3 Detach 3 | . . . . . . . 2 1 Swap 7 | . . . . . . 1 . 6 Drop 22 | . . . . . 3 7 1 11 Fire 10 | . 8 . . . . . 2 . Melee 78 | . . . . . . . 8 70 Ram 1 | . 1 . . . . . . . Kick . | . . . . . . . . . Crush . | . . . . . . . . . Escape Stasis . | . . . . . . . . . Rewire . | . . . . . . . . . Trap . | . . . . . . . . . Miscellaneous . | . . . . . . . . . Route ------- -11/Scrapyard -10/Materials -10/Mines -9/Materials -9/Storage -9/Recycling -9/Scraptown (discovered 2 exits: *Fac x2) -6/Factory -5/Factory (discovered 1 exit: Gar) History --------- Turn | Location | Event 5 | -11/Scrapyard | Discovered new exit (range 13) 11 | -11/Scrapyard | Entered Materials 67 | -10/Materials | Core integrity fell below 50% 107 | -10/Materials | Discovered new exit (range 16) 112 | -10/Materials | Entered Mines 118 | -10/Mines | Discovered new exit (range 11) 122 | -10/Mines | Entered Materials 122 | -9/Materials | Evolved 2 slots: Propulsion x2 134 | -9/Materials | Discovered new exit (range 6) 137 | -9/Materials | Entered Storage 185 | -9/Storage | Used back door to open Recycling access 185 | -9/Storage | Discovered new exit (range 5) 186 | -9/Storage | Entered Recycling 235 | -9/Recycling | Scanned before Scraplab entrance 240 | -9/Recycling | Entered Scraplab 244 | -9/Recycling | Discovered new exit (range 3) 245 | -9/Recycling | Entered Scraptown 275 | -9/Scraptown | Visited UFD Registry 275 | -9/Scraptown | Registered with UFD as "Hardsplitter" 285 | -9/Scraptown | Visited Sword Containment 302 | -9/Scraptown | Visited Junk Repository 321 | -9/Scraptown | Visited Botcube Research 322 | -9/Scraptown | Found Botcube 328 | -9/Scraptown | Build established: Mutant 354 | -9/Scraptown | Visited Curators Association 361 | -9/Scraptown | Visited Infowarlord's Domain 373 | -9/Scraptown | Visited DA-N13 Charitable Foundation 376 | -9/Scraptown | Found DCF Scrap (31 items) 398 | -9/Scraptown | Visited Junk Repository 416 | -9/Scraptown | Visited Cartography Club 437 | -9/Scraptown | Visited Comm Corps 486 | -9/Scraptown | Discovered new exit (range 11) 519 | -9/Scraptown | Heard Great Nut preacher, LISTEN AND RECITE! 653 | -9/Scraptown | Met Optimus 653 | -9/Scraptown | Accepted into 0bPrime 673 | -9/Scraptown | Discovered new exit (range 5) 699 | -9/Scraptown | Entered Factory 699 | -6/Factory | Evolved 6 slots: Power x1, Propulsion x2, Utility x3 883 | -6/Factory | Discovered new exit (range 7) 886 | -6/Factory | Entered another Factory area 886 | -5/Factory | Evolved 2 slots: Propulsion x1, Utility x1 944 | -5/Factory | Loaded intel: 8 recycling unit locations 1040 | -5/Factory | Identified exit to Garrison 1072 | -5/Factory | Scrapoids reinforcements arrived? 1072 | -5/Factory | Garrison activated, responded to threat 1317 | -5/Factory | Spotted B-75 Beast 1340 | -5/Factory | Lost 4 parts (1p3n) 1447 | -5/Factory | Core integrity fell below 50% 1459 | -5/Factory | Core integrity fell below 20% 1470 | -5/Factory | Destroyed by H-66 Slayer with Gauss Rifle Last Messages --------------- 01456_ Lgt. Nuclear Core destroyed. 01457_ K-01 Serf collects debris. 01457_ Slug penetrates Pressure Siphon. 01457_ VTOL Module destroyed. 01457_ Acquired 20 matter. 01458_ Penetrated by Slug. 01458_ VTOL Module destroyed. 01461_ K-01 Serf collects debris. 01463_ Slug penetrates Pressure Siphon. 01463_ Penetrated by Slug. 01463_ Dropped Companion Sword. Companion Sword: "You really piss me off." 01464_ Dropped Imp. Sensor Array. 01464_ Acquired Companion Sword. 01464_ Slug penetrates Pressure Siphon. 01466_ Penetrated by Slug. 01466_ Slug penetrates Wall. 01466_ Enh. Optical Array destroyed. 01469_ Penetrated by Slug. 01469_ Slug penetrates Wall. Map ----- +----------------------------------------------------+ | #????????????????????????#%*= | | #########################" = | | + % =! | | ####### % =###"###""#"### | | #?????# ""%%%%% #* #??# | | ########?????# """ %%% /%* #??######### | | ?????????????# """ "%% # #??????????? | | ?????????????# """ """ %" #??????????? | | ?????????????# = ###########??????????? | | ?????????????# %! %%""% #???????????########## | | ?????????????# % %!!! ""% ############# | | ?????????????# % !!! ""hh + | | ?????????????# !!! "%% ######### | | ?????????????#% ! #???????# """"""" | | ?????????????# #???????# """"""" | | ?????????????# #### ! #???????# """"""" | | ?????????????#% #??# #???????# """"""" | | ?????????????# ####"## #???????# | | ????????????## # # #??????########### | | ????????????# #"" # +??????# | | ????????????#T #"" " # #??????# | | ????????????## #G> " # ########?????# | | ??# ###### #"" " + #????" #?????# | | ??# #""g" # #?? #?????# | | ^ + " # # % #?????# | | ### # A" /@/ #?????# | | ??# #######+### " # # #?????# * | | ??###+????????????# " # #?? #?????# | | ??????????????????# " # #????###?????# ! | | ??????????????????# # #????????????# ! | | ??????????????????####### #????????????# | | ????????????????????????+ ????????????########### | | ????????????????????????# #???????????????# | | ????????????????????????# #???????????????# | | ????????????????????????? ????????????????# ]]! | | ?????????????????????????+????????????????# ]]! | | ??????????????????????????????????????????# ]] | | ??????????????????????????????????????????# | | ??????????????????????????????????????????# | | ?????????????????????????????+????????????# | | ??????????????????????????????????????????######## | | ?????????????????????????????????????????????????? | | ?????????????????????????????????????????????????? | | ?????????????????????????????????????????????????? | | ?????????????????????????????????????????????????? | | ?????????????????????????????????????????????????? | | ?????????????????????????????????????????????????? | | ?????????????????????????????????????????????????? | | ????????????????????????????????????????????????## | | ????????????????????????????????????????????????# | +----------------------------------------------------+ Best States ------------- Heat Dissipation 40 Energy Generation 37 Energy Capacity 600 Matter Stores 300 Matter Capacity 300 Sight Range 22 Robot Scan Range 15 Terrain Scan Density 10 Power Amplification 20 Corruption Block 8 Evasion (%) 72 Target Analysis 6 Defensive Hacking 12 Item Schematics ----------------- None Robot Schematics ------------------ None Fabricated ------------ Nothing Repaired ---------- Nothing Alien Tech Used ----------------- None Achievements -------------- None Challenges ------------ None Game ------ Seed WaveAccelerationHammer Manual? 0 Play Time 00:20:43 Cumulative 540.7 hours Start 2025.08.17 @ 02:54:18 End 2025.08.17 @ 03:13:16 Sessions 1 Manual Loads 0 Difficulty Rogue Special Mode None Game No. 282 Rogue 282 Adventurer 0 Explorer 0 Win Type - Total 6 Types 3/0/1/1/0/0/0/0/0/1 Lore% 86 Gallery% 77 Achievement% 68 Wizard Run 0 Options --------- Layout 2 ASCII 0 Keyboard 1 Movement Vi Keybinds 0 Fullscreen 1 Font 16/Tamsyn Map View 55x47 Zoom Use 0% Tactical HUD 1 Map Filters NONE Filters NONE Steam 0 RUN: c1840b71-d215-42ca-9122-c5a3032405ee